bitfinex/quotes_ETHUSD_20250611
["timestamp","ask_amount","ask_price","bid_price","bid_amount"]
[1749651053319,0.1784,2799.6,2799.0,4.34723532]
[1749651053320,0.7517,2799.5,2799.4,0.00664247]
[1749651055263,10.01566285,2799.9,2798.8,8.80681818]
[1749651055264,1.0064,2799.4,2798.8,8.80681818]
[1749651055448,0.828,2799.4,2798.9,10.0]
[1749651056279,0.828,2799.4,2798.8,8.80681818]
[1749651056424,0.9326,2798.9,2798.8,8.80681818]
[1749651056625,0.9326,2798.9,2798.8,18.80681818]
[1749651057529,0.1784,2798.9,2798.8,19.2775633]
[1749651057825,0.1784,2798.9,2798.8,19.75172068]
[1749651058167,0.1784,2798.9,2798.8,19.2775633]
[1749651060053,0.1784,2798.9,2798.8,19.2827346]
[1749651061155,0.1784,2798.9,2798.8,18.81198948]
[1749651061560,0.9584,2798.9,2798.8,18.81198948]
[1749651061857,0.9584,2798.9,2798.8,8.81198948]
[1749651062274,0.9584,2798.9,2798.8,8.81198834]
[1749651062764,0.9584,2798.9,2798.8,8.80681704]
[1749651063965,1.5084,2798.9,2798.8,8.80681704]
[1749651064654,0.9584,2798.9,2798.8,8.80681704]
[1749651065934,1.5084,2798.9,2798.8,8.80681704]
[1749651068678,0.9584,2798.9,2798.8,8.80681704]
[1749651077692,0.9584,2798.9,2798.8,8.80681704]
[1749651081153,11.52406285,2798.9,2798.8,3.49935788]
[1749651081356,0.55,2798.6,2798.1,0.04]
[1749651081557,11.35326285,2798.2,2798.1,0.04]
[1749651082385,15.17026285,2798.2,2798.1,0.04]
[1749651082791,5.1546,2798.2,2798.1,0.04]
[1749651082988,6.67162629,2798.2,2798.1,0.04]
[1749651084159,7.03430283,2798.2,2798.1,0.04]
[1749651085491,17.03430283,2798.2,2798.1,0.04]
[1749651087411,13.21730283,2798.2,2798.1,0.04]
[1749651087620,18.08330283,2798.2,2798.1,0.04]
[1749651088549,18.08330283,2798.2,2797.1,0.04]
[1749651088550,0.55,2797.9,2797.1,0.04]
[1749651088722,1.3676,2797.2,2797.1,0.04]
[1749651088923,6.32292629,2797.2,2797.1,0.04]
[1749651089122,5.1846,2797.2,2797.1,0.04]
[1749651090510,0.8176,2797.2,2797.1,0.04]
[1749651090719,1.049,2797.9,2797.1,0.04]
[1749651090918,0.7973,2798.0,2797.1,0.04]
[1749651090919,3.817,2797.8,2797.1,0.04]
[1749651091146,0.55,2797.7,2797.1,0.04]
[1749651091450,3.817,2797.6,2797.1,0.04]
[1749651091617,3.817,2797.5,2797.1,0.04]
[1749651091948,3.817,2797.4,2797.1,0.04]
[1749651092135,3.817,2797.3,2797.1,0.04]
[1749651095552,0.73463,2797.9,2797.1,0.04]
[1749651095751,0.7973,2798.0,2797.2,10.8087]
[1749651095954,3.817,2798.1,2797.2,10.35801908]
[1749651096138,1.8805,2798.4,2797.5,10.7598]
[1749651096441,0.1784,2797.6,2797.5,10.7598]
[1749651096950,0.1784,2797.7,2797.6,0.7872]
[1749651097759,0.1784,2797.9,2797.6,0.7872]
[1749651097912,0.1784,2797.9,2797.8,20.01566285]
[1749651098117,0.1784,2797.9,2797.8,20.82126285]
[1749651098335,0.1784,2798.2,2797.9,0.8056]
[1749651099416,0.1784,2798.2,2798.0,0.801]
[1749651101386,0.1784,2798.2,2798.0,1.15844768]
[1749651102288,0.1784,2798.2,2798.1,20.82246285]
[1749651102586,0.1784,2798.6,2798.2,10.0]
[1749651102760,0.1784,2798.6,2798.5,10.8068]
[1749651109514,0.1784,2798.6,2798.3,0.7595]
[1749651109670,0.1784,2798.4,2798.3,0.7595]
[1749651110497,0.1784,2798.4,2798.1,0.7873]
[1749651110676,0.7952,2798.7,2797.9,1.046]
[1749651111007,0.7952,2798.7,2797.9,1.39991944]
[1749651111212,0.1784,2798.0,2797.9,1.046]
[1749651111773,0.1784,2798.0,2797.5,0.7592]
[1749651111979,0.1784,2797.5,2797.2,0.7592]
[1749651112179,0.1784,2797.4,2797.2,0.7592]
[1749651112912,0.1784,2797.4,2797.2,1.22994512]
[1749651113804,0.1784,2797.4,2797.3,0.00366211]
[1749651114803,0.1784,2797.4,2797.2,11.11158485]
[1749651118197,0.1784,2797.4,2797.3,0.00366211]
[1749651118783,0.1784,2797.4,2797.2,11.11158485]
[1749651119317,0.7844,2798.1,2797.2,10.7592]
[1749651119923,0.1784,2797.3,2797.2,10.7592]
[1749651120430,0.7844,2798.1,2797.2,10.7592]
[1749651120431,0.1784,2797.4,2797.2,10.7592]
[1749651120779,0.55,2798.0,2797.1,0.04]
[1749651121087,0.8016,2797.9,2797.1,0.04]
[1749651121286,10.56566285,2798.0,2797.1,0.04]
[1749651121287,0.8016,2797.7,2797.1,0.04]
[1749651122419,0.8016,2797.7,2797.2,0.00366224]
[1749651123321,0.8016,2797.7,2797.2,0.00732448]
[1749651123623,0.8016,2797.7,2797.1,0.04]
[1749651123624,0.1784,2797.2,2797.1,0.04]
[1749651124885,10.01566285,2798.3,2797.2,10.0]
[1749651124886,0.759,2797.9,2797.2,10.0]
[1749651125420,1.046,2798.7,2797.2,0.47074512]
[1749651125421,0.7501,2798.6,2797.2,0.47074512]
[1749651125592,5.66826629,2798.6,2797.3,1.23304512]
[1749651125795,1.85626629,2798.6,2797.5,10.0]
[1749651126006,1.85626629,2798.6,2797.8,10.0]
[1749651126007,0.7501,2798.6,2797.8,10.0]
[1749651126334,0.7501,2798.6,2797.6,1.30364512]
[1749651126504,0.7501,2798.6,2797.6,0.8329]
[1749651126834,0.55,2798.5,2797.6,0.8329]
[1749651127406,1.13157629,2798.5,2797.7,0.00366159]
[1749651127606,0.824,2799.5,2798.0,0.7673]
[1749651127806,11.06166285,2799.6,2798.0,0.7673]
[1749651127807,0.55,2799.3,2798.0,1.23804512]
[1749651128130,0.824,2799.4,2798.0,1.23804512]
[1749651128320,0.824,2799.2,2798.0,1.23804512]
[1749651128518,0.824,2799.2,2798.1,0.47074512]
[1749651129535,0.824,2799.2,2798.2,10.7767]
[1749651129781,0.7985,2799.7,2798.6,0.7767]
[1749651130439,0.55,2799.6,2798.6,0.7767]
[1749651130833,0.7985,2799.7,2798.6,0.7767]
[1749651131295,0.55,2799.6,2798.6,0.7767]
[1749651131494,0.55,2799.6,2798.7,0.00201644]
[1749651133023,1.13641629,2799.5,2798.7,0.00201644]
[1749651133325,4.6085,2799.7,2798.7,0.00201644]
[1749651133921,10.01566285,2799.5,2798.7,0.00201644]
[1749651134507,10.01566285,2799.5,2798.6,0.7767]
[1749651134962,0.7544,2799.3,2798.2,0.7514]
[1749651135103,0.1784,2798.4,2798.2,0.7514]
[1749651136004,0.1784,2798.4,2798.3,11.30024512]
[1749651136215,0.1784,2798.4,2798.3,1.30024512]
[1749651136551,0.1784,2798.4,2798.3,0.8295]
[1749651138259,0.1784,2798.4,2798.3,1.19070716]
[1749651139747,0.1784,2798.4,2798.0,0.1784]
[1749651139748,0.1784,2798.4,2798.0,1.043]
[1749651139903,0.7916,2799.0,2798.1,0.7953]
[1749651140121,0.1784,2798.2,2798.1,0.7953]
[1749651143213,0.7916,2799.0,2798.1,10.81096285]
[1749651143515,0.1784,2798.5,2798.2,11.7548525]
[1749651143765,0.805,2799.7,2798.5,10.8172]
[1749651146061,0.805,2799.7,2798.6,0.00296192]
[1749651147336,0.55,2799.4,2798.6,0.00296192]
[1749651148361,0.04,2799.9,2798.8,10.0]
[1749651148362,0.8471,2799.9,2798.8,10.0]
[1749651148569,0.55,2799.8,2798.8,10.0]
[1749651148930,0.55,2799.8,2798.7,1.29474512]
[1749651149421,0.8471,2799.9,2798.7,1.29474512]
[1749651149755,0.8471,2799.9,2798.7,0.824]
[1749651150722,0.55,2799.8,2798.7,0.824]
[1749651150915,0.55,2799.6,2798.7,0.824]
[1749651151555,0.04,2799.9,2798.3,3.806]
[1749651151556,10.01566285,2799.2,2798.3,0.7716]
[1749651151755,10.84586285,2798.9,2798.1,0.7716]
[1749651151960,10.56566285,2798.6,2797.4,0.7532]
[1749651152125,0.8197,2798.5,2797.4,1.05161374]
[1749651152819,0.8197,2798.5,2797.5,0.00664698]
[1749651153019,1.55156629,2799.1,2797.7,0.777]
[1749651153333,4.6249,2799.0,2797.8,10.9376525]
[1749651153542,0.8189,2799.0,2798.0,0.777]
[1749651153761,0.1784,2798.1,2798.0,10.777]
[1749651156876,0.1784,2798.1,2798.0,0.777]
[1749651158661,0.8235,2799.4,2798.4,0.8038]
[1749651158862,0.8235,2799.8,2798.8,10.8038]
[1749651159758,0.8235,2799.8,2798.9,0.46690738]
[1749651159938,0.8235,2799.8,2798.8,11.27454512]
[1749651160745,1.043,2800.4,2799.0,10.01566285]
[1749651160946,0.7648,2800.0,2799.1,0.7999]
[1749651161545,0.7648,2800.0,2798.4,10.01566285]
[1749651161546,10.01566285,2799.7,2798.5,0.7504]
[1749651161745,1.77456629,2799.6,2798.5,0.7504]
[1749651162144,0.773,2799.4,2798.0,0.7504]
[1749651162371,0.773,2799.4,2798.0,5.66267333]
[1749651162558,0.773,2799.4,2798.2,10.0]
[1749651162761,0.773,2799.4,2798.3,0.7855]
[1749651164281,1.38585663,2799.4,2798.3,0.7855]
[1749651164780,0.773,2799.4,2798.6,10.0]
[1749651165361,0.7783,2799.8,2798.7,1.24184512]
[1749651165569,0.7783,2799.8,2798.7,0.7711]
[1749651166174,0.7783,2799.8,2798.8,0.00421409]
[1749651168654,0.1784,2799.1,2798.8,0.00421409]
[1749651169074,0.1784,2799.1,2798.7,0.7711]
[1749651169657,0.1784,2799.1,2798.9,10.0]
[1749651169989,0.1784,2799.3,2798.9,10.0]
[1749651171452,0.1784,2799.3,2799.0,0.7589]
[1749651173450,4.843,2800.4,2799.0,0.7589]
[1749651173451,0.8225,2800.0,2799.1,10.01566285]
[1749651173710,0.1784,2799.5,2799.1,14.24222014]
[1749651173861,0.8225,2800.0,2799.1,14.24222014]
[1749651173862,0.1784,2799.6,2799.3,10.0]
[1749651174062,0.1784,2799.6,2799.5,10.0]
[1749651174395,10.05566285,2800.9,2799.5,10.0]
[1749651174396,0.2184,2799.9,2799.5,10.7662]
[1749651174599,0.2184,2799.9,2799.8,10.0]
[1749651174950,0.1784,2800.2,2800.1,3.57130102]
[1749651175101,0.1784,2800.5,2800.2,20.01566285]
[1749651175817,0.04,2800.9,2800.4,3.57091844]
[1749651175963,0.2184,2800.9,2800.5,10.0]
[1749651176157,0.2184,2800.9,2800.5,3.9285673]
[1749651176600,0.2184,2800.9,2800.7,10.01566285]
[1749651176898,0.04,2800.9,2800.8,10.781]
[1749651177065,0.04,2800.9,2800.8,14.35140845]
[1749651177256,0.04,2800.9,2800.8,33.64420145]
[1749651177458,0.04,2801.9,2800.8,7.84312425]
[1749651177676,0.1784,2801.7,2801.6,10.8169]
[1749651179071,0.1784,2801.7,2801.6,0.8169]
[1749651179569,0.1784,2801.7,2801.3,10.8046]
[1749651180012,0.1784,2801.7,2801.3,14.37436308]
[1749651180197,0.1784,2801.7,2801.5,10.0]
[1749651180376,0.1784,2801.7,2801.3,14.37434793]
[1749651180578,0.1784,2801.7,2801.5,10.0]
[1749651180997,0.1784,2801.7,2801.3,14.37430852]
[1749651181310,0.1784,2801.7,2801.3,14.37431544]
[1749651181473,0.1784,2801.7,2801.3,10.8046]
[1749651181912,0.1784,2801.7,2801.3,0.8046]
[1749651182121,0.1784,2801.7,2801.3,11.8446]
[1749651182277,0.1784,2801.7,2801.5,10.0]
[1749651182703,0.1784,2801.7,2801.3,15.414309]
[1749651183021,0.1784,2801.7,2801.5,10.0]
[1749651183312,0.1784,2801.7,2801.4,20.01566285]
[1749651183497,0.1784,2801.7,2801.4,23.58526674]
[1749651184380,0.1784,2801.7,2801.4,23.58530387]
[1749651184783,0.1784,2801.7,2801.4,20.01566285]
[1749651184983,0.04,2801.9,2801.6,10.0]
[1749651185180,0.04,2802.9,2802.1,13.56870156]
[1749651185181,0.7654,2802.7,2802.1,13.56870156]
[1749651185489,0.7654,2802.7,2802.4,10.0]
[1749651186079,0.7654,2802.7,2802.0,20.01566285]
[1749651186284,0.7654,2802.7,2802.0,24.80291002]
[1749651186919,0.04,2802.9,2802.0,21.59762851]
[1749651187241,0.04,2802.9,2802.4,10.0]
[1749651187383,0.04,2802.9,2802.0,0.36350867]
[1749651187588,0.04,2802.9,2801.8,11.8412]
[1749651187885,0.04,2802.9,2802.0,3.56886233]
[1749651188101,0.04,2802.9,2802.4,3.56827943]
[1749651188328,0.04,2802.9,2802.4,14.32656727]
[1749651188823,0.04,2802.9,2802.4,10.7583]
[1749651189325,0.04,2802.9,2802.4,14.32666934]
[1749651189890,0.04,2802.9,2802.6,23.58375589]
[1749651190198,0.04,2802.9,2802.5,10.0]
[1749651190407,0.04,2802.9,2802.6,10.0]
[1749651191135,0.04,2802.9,2802.2,11.037]
[1749651191637,0.04,2802.9,2802.2,14.60560744]
[1749651191793,0.04,2802.9,2802.3,10.0]
[1749651191995,0.04,2802.9,2802.4,3.56829405]
[1749651192446,0.04,2802.9,2802.4,10.0]
[1749651192997,0.04,2802.9,2802.3,10.0]
[1749651193203,0.04,2802.9,2802.3,10.47074512]
[1749651193419,0.04,2802.9,2802.4,0.47074512]
[1749651193594,0.04,2802.9,2802.4,4.03903688]
[1749651194454,0.04,2802.9,2802.4,4.03904054]
[1749651194627,0.04,2802.9,2802.6,3.56810079]
[1749651194828,0.04,2802.9,2802.7,0.47074512]
[1749651195150,0.2176,2802.9,2802.7,0.47074512]
[1749651195328,0.2176,2802.9,2802.8,20.01566285]
[1749651195536,0.2176,2802.9,2802.8,24.05426868]
[1749651195861,0.04,2802.9,2802.8,10.47074512]
[1749651196023,0.04,2802.9,2802.8,10.0]
[1749651197116,0.04,2802.9,2802.8,10.47074512]
[1749651197316,0.04,2802.9,2802.8,14.03860583]
[1749651197534,0.04,2802.9,2802.8,10.47074512]
[1749651198220,0.04,2802.9,2802.8,10.0]
[1749651201362,0.04,2802.9,2802.8,10.47074512]
[1749651202653,0.04,2802.9,2802.8,10.0]
[1749651203240,0.2176,2802.9,2802.8,10.0]
[1749651205758,0.9933,2802.9,2802.8,10.0]
[1749651205956,0.9933,2802.9,2802.0,0.35638052]
[1749651205957,0.9933,2802.9,2802.0,1.36038052]
[1749651206119,0.1784,2802.4,2802.0,1.8616]
[1749651206530,0.1784,2802.4,2802.0,11.37826285]
[1749651206743,0.1784,2802.4,2802.1,10.0]
[1749651206939,0.1784,2802.4,2802.1,13.56874859]
[1749651207140,0.1784,2802.4,2802.1,10.0]
[1749651207364,0.1784,2802.4,2802.2,10.0]
[1749651207974,0.1784,2802.4,2802.1,10.0]
[1749651208182,0.1784,2802.4,2802.1,13.56874274]
[1749651208532,0.1784,2802.4,2802.1,10.0]
[1749651208971,0.1784,2802.4,2802.1,13.56873486]
[1749651209170,0.9471,2802.4,2802.0,15.4387777]
[1749651209873,0.9471,2802.4,2802.2,10.0]
[1749651210576,0.9471,2802.4,2802.1,10.0]
[1749651211458,0.9471,2802.4,2802.2,10.0]
[1749651212993,0.9471,2802.4,2802.2,3.56859164]
[1749651213287,0.1784,2802.4,2802.2,4.03929894]
[1749651213992,0.1784,2802.4,2802.2,0.47074512]
[1749651214554,0.1784,2802.4,2802.1,13.56869998]
[1749651215177,0.1784,2802.4,2802.3,10.0]
[1749651215374,0.1784,2802.4,2802.1,13.5687026]
[1749651216347,0.1784,2802.4,2802.3,10.0]
[1749651216542,0.1784,2802.4,2802.1,14.03943064]
[1749651216743,0.1784,2802.4,2802.3,10.0]
[1749651221350,0.1784,2802.4,2802.3,16.65782365]
[1749651221867,0.1784,2802.4,2802.3,6.65782365]
[1749651222071,0.1784,2802.4,2802.3,16.65782365]
[1749651223574,0.1784,2802.4,2802.3,20.22632095]
[1749651223892,0.1784,2802.4,2802.3,16.65782365]
[1749651226189,0.04,2802.9,2802.4,10.0]
[1749651226190,0.7747,2802.8,2802.4,10.0]
[1749651226364,0.7747,2802.8,2802.5,6.65782365]
[1749651226571,0.04,2802.9,2802.4,10.0]
[1749651226572,0.04,2802.9,2802.8,10.0]
[1749651226813,0.04,2802.9,2802.2,18.44432365]
[1749651227095,0.1776,2802.7,2802.5,10.0]
[1749651227298,0.04,2802.9,2802.5,10.0]
[1749651229809,0.8253,2802.8,2802.0,0.1784]
[1749651230012,0.04,2802.9,2801.8,1.50474512]
[1749651230013,0.1784,2802.1,2801.8,7.69182365]
[1749651230225,0.1784,2802.1,2801.8,1.034]
[1749651230385,0.1784,2802.1,2801.9,0.00663654]
[1749651230578,0.1784,2802.1,2801.8,1.034]
[1749651230779,0.8253,2802.2,2801.9,10.0]
[1749651232797,0.8253,2802.2,2801.8,1.034]
[1749651233106,0.1784,2801.9,2801.8,1.034]
[1749651233997,0.1784,2801.9,2801.8,11.034]
[1749651234213,0.1784,2801.9,2801.8,17.69182365]
[1749651235517,0.1784,2801.9,2801.8,7.69182365]
[1749651236119,0.1784,2801.9,2801.8,1.034]
[1749651236687,0.1784,2801.9,2801.8,11.034]
[1749651236890,0.1784,2801.9,2801.8,1.034]
[1749651237088,0.1784,2801.9,2801.8,7.69182365]
[1749651237328,0.1784,2801.9,2801.8,8.62947615]
[1749651237528,0.1784,2801.9,2801.8,11.73170289]
[1749651237741,0.1784,2801.9,2801.8,22.49550289]
[1749651238110,0.1784,2801.9,2801.8,22.96241027]
[1749651238708,0.1784,2801.9,2801.8,22.49550289]
[1749651243131,0.7519,2802.5,2802.0,3.56880684]
[1749651243315,0.1784,2802.3,2802.2,6.65782365]
[1749651244822,0.8728,2802.9,2802.5,10.0]
[1749651245132,0.1784,2802.6,2802.4,10.0]
[1749651245529,0.1784,2802.6,2802.4,3.56835596]
[1749651245942,0.1784,2802.6,2802.3,14.35923213]
[1749651246155,0.1784,2802.6,2802.3,0.7908]
[1749651246377,0.1784,2802.6,2802.5,10.0]
[1749651247423,0.1784,2802.6,2802.5,20.22606629]
[1749651247735,0.1784,2802.6,2802.5,20.69681141]
[1749651249147,0.04,2802.9,2802.8,10.0]
[1749651249337,0.2176,2802.9,2802.8,16.65782365]
[1749651249962,0.2176,2802.9,2802.5,6.65782365]
[1749651250190,0.1784,2802.7,2802.6,10.0]
[1749651250961,0.2176,2802.9,2802.7,3.56794502]
[1749651251160,0.2176,2802.9,2802.8,16.65782365]
[1749651251892,0.2176,2802.9,2802.8,21.16333686]
[1749651252188,0.2176,2802.9,2802.8,17.59547615]
[1749651252490,0.2176,2802.9,2802.8,18.42377615]
[1749651253072,0.2176,2802.9,2802.8,16.65782365]
[1749651254080,0.2176,2802.9,2802.8,10.0]
[1749651254378,1.0153,2802.9,2802.8,10.0]
[1749651256598,0.2176,2802.9,2802.8,10.0]
[1749651257102,0.2176,2802.9,2802.8,10.47074512]
[1749651257492,0.2176,2802.9,2802.8,14.50551321]
[1749651257891,0.2176,2802.9,2802.8,10.9376525]
[1749651258091,0.2176,2802.9,2802.8,14.50551321]
[1749651258288,0.2176,2802.9,2802.8,10.9376525]
[1749651259297,0.2176,2802.9,2802.8,14.50551321]
[1749651259503,0.04,2803.9,2803.1,40.0]
[1749651259675,0.04,2803.9,2803.8,17.42152365]
[1749651259877,0.04,2803.9,2803.8,10.0]
[1749651260487,5.52592365,2804.8,2803.8,10.0]
[1749651260716,6.65782365,2804.6,2803.8,10.0]
[1749651261218,0.55659237,2804.7,2803.8,10.0]
[1749651261380,0.55,2804.6,2803.8,10.0]
[1749651262492,0.55659237,2804.7,2804.1,10.0]
[1749651262693,0.04,2804.9,2804.1,10.0]
[1749651263391,0.04,2804.9,2804.4,6.65782365]
[1749651263590,0.7761,2804.8,2804.4,6.65782365]
[1749651263979,0.7761,2804.8,2804.5,10.0]
[1749651264316,0.04,2804.9,2804.7,10.0]
[1749651264880,0.04,2804.9,2804.8,16.65782365]
[1749651265119,0.04,2804.9,2804.8,17.12856877]
[1749651265321,0.2176,2804.9,2804.8,10.0]
[1749651265526,0.04,2805.9,2804.9,10.0]
[1749651265820,0.7871,2805.6,2804.9,1.03]
[1749651266023,0.7871,2805.6,2804.7,1.03]
[1749651266024,0.1776,2804.9,2804.7,1.03]
[1749651266184,0.1776,2804.9,2804.7,11.03]
[1749651266382,0.1776,2804.9,2804.7,1.03]
[1749651267293,0.1776,2804.9,2804.6,10.0]
[1749651267493,0.1776,2804.9,2804.5,0.7504]
[1749651267700,0.1776,2804.9,2804.6,1.03]
[1749651268320,11.551,2806.4,2804.8,10.0]
[1749651268486,9.96770457,2806.2,2804.8,1.50074512]
[1749651268690,0.55,2806.1,2804.8,0.47074512]
[1749651269598,0.3984,2806.0,2804.8,0.47074512]
[1749651270384,0.3984,2805.9,2804.8,0.47074512]
[1749651270610,0.3984,2805.7,2804.6,1.03]
[1749651272001,0.3984,2805.7,2804.6,1.50074512]
[1749651272197,0.3984,2805.7,2804.7,10.47074512]
[1749651272401,0.3984,2805.7,2804.7,20.43844969]
[1749651273324,0.3984,2805.7,2804.7,0.47074512]
[1749651273625,0.3984,2805.7,2804.6,1.03]
[1749651273833,0.3984,2805.7,2804.6,0.47074512]
[1749651275506,0.3984,2805.5,2804.6,0.47074512]
[1749651276436,0.3984,2805.5,2804.4,1.03]
[1749651277513,0.3984,2805.5,2804.2,14.34296776]
[1749651277738,0.3984,2805.5,2804.3,1.03]
[1749651278246,0.1776,2804.6,2804.4,10.47074512]
[1749651278744,0.1776,2804.6,2804.5,10.0]
[1749651278950,0.1776,2804.6,2804.5,0.47074512]
[1749651283235,0.1776,2804.6,2804.1,1.067]
[1749651283435,0.1776,2804.4,2804.1,1.067]
[1749651283836,0.1776,2804.4,2804.1,0.04]
[1749651284179,0.3984,2805.3,2804.3,10.8018]
[1749651284335,0.3984,2805.3,2804.8,10.0]
[1749651284535,0.3984,2805.3,2804.9,0.47074512]
[1749651285268,0.3984,2805.3,2805.0,10.0]
[1749651285635,3.777,2806.1,2805.2,10.0]
[1749651285636,0.3984,2805.5,2805.2,10.0]
[1749651286240,0.3984,2805.5,2805.0,0.47074512]
[1749651286241,0.3984,2805.5,2805.0,10.47074512]
[1749651287346,1.027,2806.5,2805.4,10.0]
[1749651287549,0.3984,2806.4,2805.8,10.0]
[1749651287759,0.3984,2806.4,2805.6,10.0]
[1749651287760,0.3984,2806.4,2806.1,6.64542339]
[1749651287966,0.3984,2806.4,2806.0,10.0]
[1749651288364,0.3984,2806.4,2805.7,16.64542339]
[1749651288859,0.3984,2806.4,2805.6,10.0]
[1749651289051,0.3984,2806.4,2805.7,6.64542339]
[1749651289252,0.3984,2806.4,2806.0,10.0]
[1749651289662,0.3984,2806.4,2805.9,10.0]
[1749651290160,0.3984,2806.7,2805.7,3.56417293]
[1749651290359,0.3984,2806.7,2806.3,10.0]
[1749651290680,0.3984,2806.7,2806.0,6.64542339]
[1749651291586,0.3984,2806.7,2806.0,10.20920449]
[1749651291785,0.3984,2806.7,2806.1,6.64542339]
[1749651291965,6.13964509,2807.3,2806.1,6.64542339]
[1749651292162,6.13964509,2807.3,2806.0,0.8253]
[1749651292163,0.61396451,2807.2,2806.0,0.8253]
[1749651292482,0.61396451,2807.2,2806.2,10.0]
[1749651292687,0.61396451,2807.2,2806.3,6.64542339]
[1749651292882,0.61396451,2807.2,2806.2,10.0]
[1749651292883,7.77,2807.8,2806.8,6.64542339]
[1749651293059,6.64542339,2807.6,2806.4,0.47074512]
[1749651293260,6.64542339,2807.2,2806.2,0.7901]
[1749651293874,6.64542339,2807.4,2806.3,10.0]
[1749651294187,0.1776,2806.4,2806.3,10.0]
[1749651294551,0.66454234,2807.3,2806.3,13.56341089]
[1749651294756,0.1776,2806.8,2806.7,6.64542339]
[1749651294951,0.1776,2806.8,2806.7,17.11616851]
[1749651295177,0.1776,2806.8,2806.7,17.89966851]
[1749651295550,0.04,2807.9,2806.7,17.89966851]
[1749651295551,0.04,2807.9,2807.1,3.56234863]
[1749651295761,0.1776,2807.5,2807.4,6.64542339]
[1749651295962,0.1776,2807.5,2807.4,10.0]
[1749651296192,0.1776,2807.5,2807.4,16.64542339]
[1749651296555,0.1776,2807.5,2807.4,10.0]
[1749651297453,0.1776,2807.5,2807.4,16.64542339]
[1749651297653,0.1776,2807.8,2807.4,1.30364512]
[1749651297865,0.1776,2807.8,2807.4,17.47832339]
[1749651298084,0.1776,2807.8,2807.7,16.64542339]
[1749651298285,0.04,2807.9,2807.7,16.64542339]
[1749651298606,0.04,2807.9,2807.7,10.67773155]
[1749651298775,0.04,2807.9,2807.7,7.11616851]
[1749651298970,0.04,2807.9,2807.7,11.03251288]
[1749651299191,0.04,2807.9,2807.8,10.0]
[1749651299390,0.04,2807.9,2807.7,0.82548571]
[1749651299608,0.04,2807.9,2807.7,10.82548571]
[1749651299811,0.04,2807.9,2807.7,10.35474059]
[1749651300222,0.04,2807.9,2807.7,0.35474059]
[1749651300633,0.04,2807.9,2807.5,0.1776]
[1749651300926,0.04,2807.9,2807.4,0.7925]
[1749651301077,0.04,2807.9,2807.8,23.50886779]
[1749651301271,0.04,2807.9,2807.8,24.30136779]
[1749651301586,0.14336581,2808.7,2808.0,0.7925]
[1749651301769,0.32096581,2808.7,2808.6,20.73986057]
[1749651301972,0.32096581,2808.7,2808.6,10.0]
[1749651302306,0.32096581,2808.7,2808.6,10.00541072]
[1749651302803,0.32096581,2808.7,2808.6,10.78951072]
[1749651303302,0.32096581,2808.7,2808.6,14.82074861]
[1749651303303,0.14336581,2808.7,2808.6,14.82074861]
[1749651303707,0.14336581,2808.7,2808.6,11.26025584]
[1749651304009,0.14336581,2808.7,2808.6,0.00541072]
[1749651304174,0.36086581,2808.7,2808.6,0.00541072]
[1749651304506,0.14336581,2808.7,2808.6,9.95277129]
[1749651304671,0.14336581,2808.7,2808.6,0.00541072]
[1749651304672,0.32096581,2808.7,2808.6,0.00541072]
[1749651305106,0.53846581,2808.7,2808.6,0.00541072]
[1749651305739,0.53846581,2808.7,2807.8,10.0]
[1749651305891,0.36086581,2808.7,2807.8,10.0]
[1749651306097,0.1776,2808.1,2807.7,0.7923]
[1749651306318,0.1776,2808.0,2807.6,1.2036]
[1749651306691,0.1776,2808.0,2807.6,1.026]
[1749651307693,0.1776,2807.8,2807.6,1.026]
[1749651308026,0.2175,2808.2,2805.7,3.56416688]
[1749651308213,0.1776,2807.4,2806.9,3.56263036]
[1749651308412,0.2175,2808.2,2807.3,13.50950212]
[1749651308613,0.1776,2808.0,2807.6,9.94736057]
[1749651308813,0.2175,2808.5,2807.4,1.026]
[1749651309012,0.14336581,2808.7,2807.1,0.7799]
[1749651309013,0.1776,2807.6,2807.1,0.7799]
[1749651309215,0.2175,2807.8,2807.1,0.7799]
[1749651309216,0.1776,2807.4,2807.2,1.32337197]
[1749651309417,0.1776,2807.4,2807.3,0.29736138]
[1749651310935,0.2175,2808.2,2807.3,0.7681065]
[1749651311104,0.2175,2808.2,2807.3,0.29736138]
[1749651311505,0.14336581,2808.7,2807.8,0.816]
[1749651311506,0.2175,2808.5,2807.8,0.816]
[1749651311701,0.2175,2808.5,2808.3,10.0]
[1749651311901,0.14336581,2808.7,2808.3,10.0]
[1749651314359,0.14336581,2808.7,2808.4,0.8243]
[1749651314559,0.14336581,2808.7,2808.6,10.0]
[1749651315122,0.14336581,2808.7,2808.6,10.47074512]
[1749651315510,0.14336581,2808.7,2808.6,10.0]
[1749651316225,0.14336581,2808.7,2808.6,10.0289855]
[1749651317067,0.14336581,2808.7,2808.6,14.06022339]
[1749651317537,0.14336581,2808.7,2808.6,0.0289855]
[1749651320061,0.36086581,2808.7,2808.6,0.0289855]
[1749651320822,0.14336581,2808.7,2808.6,0.0289855]
[1749651321026,0.14336581,2808.7,2808.6,10.44709119]
[1749651321352,0.32096581,2808.7,2808.6,11.31483062]
[1749651321552,0.14336581,2808.7,2808.6,21.26219119]
[1749651321939,0.14336581,2808.7,2808.6,20.79144607]
[1749651323331,0.14336581,2808.7,2808.6,24.35193884]
[1749651323532,0.14336581,2808.7,2808.6,24.82268396]